bitfinex-derivatives/quotes_ETHF0:USTF0_20230903
["timestamp","ask_amount","ask_price","bid_price","bid_amount"]
[1693771038141,2.27342092,1639.2,1639.1,12.69029362]
[1693771038341,2.27342092,1639.2,1639.1,14.21554027]
[1693771039342,2.27342092,1639.2,1639.1,12.69029362]
[1693771039540,2.27342092,1639.2,1639.1,14.21554027]
[1693771041346,0.00348444,1639.2,1639.1,14.21554027]
[1693771043155,0.00348444,1639.2,1639.1,19.71254027]
[1693771045848,5.0772,1639.3,1639.1,19.71254027]
[1693771046254,8.12794,1639.3,1639.1,19.71254027]
[1693771046659,10.99510352,1639.3,1639.1,19.71254027]
[1693771046855,0.00348444,1639.2,1639.1,19.71254027]
[1693771049157,0.00348444,1639.2,1639.1,21.31103323]
[1693771049855,5.0772,1639.3,1639.1,21.31103323]
[1693771050054,5.0772,1639.3,1639.2,5.497]
[1693771050254,5.0772,1639.3,1639.2,17.70072]
[1693771050862,5.08068845,1639.3,1639.2,17.70072]
[1693771051960,5.0772,1639.3,1639.2,17.70072]
[1693771052865,5.08069232,1639.3,1639.2,17.70072]
[1693771053962,5.0772,1639.3,1639.2,17.70072]
[1693771061964,7.94436352,1639.3,1639.2,17.70072]
[1693771062767,7.94784385,1639.3,1639.2,17.70072]
[1693771063665,17.10009385,1639.3,1639.2,14.64979]
[1693771063871,17.09661352,1639.3,1639.2,14.64979]
[1693771064871,17.10008868,1639.3,1639.2,14.64979]
[1693771071575,14.04933868,1639.3,1639.2,17.70072]
[1693771071770,8.13142516,1639.3,1639.2,19.22596665]
[1693771071974,5.08067516,1639.3,1639.2,19.22596665]
[1693771072472,2.53407516,1639.3,1639.2,23.87582108]
[1693771072873,2.5306,1639.3,1639.2,23.87582108]
[1693771073480,2.5306,1639.3,1639.2,26.27356053]
[1693771074278,2.5306,1639.3,1639.2,23.87582108]
[1693771078081,2.5306,1639.3,1639.2,19.22596665]
[1693771078283,2.5306,1639.3,1639.2,23.87613637]
[1693771080485,2.5306,1639.3,1639.2,26.27437209]
[1693771081780,2.03061308,1639.3,1639.2,26.27437209]
[1693771081982,2.4419,1639.6,1639.2,36.5379477]
[1693771082193,2.4419,1639.6,1639.5,20.7489]
[1693771082383,2.4419,1639.6,1639.5,22.27414665]
[1693771082780,2.44540527,1639.6,1639.5,22.27414665]
[1693771083384,0.01,1640.0,1639.5,33.87243968]
[1693771083685,2.3979,1639.8,1639.5,28.37543968]
[1693771083982,2.3979,1639.8,1639.7,5.497]
[1693771084285,2.3979,1639.8,1639.7,22.27224665]
[1693771085880,2.40132015,1639.8,1639.7,22.27224665]
[1693771087794,2.3979,1639.8,1639.7,22.27224665]
[1693771088082,2.3979,1639.8,1639.7,19.22224665]
[1693771088285,5.26506352,1639.8,1639.7,9.15]
[1693771088784,5.26847961,1639.8,1639.7,9.15]
[1693771089381,14.41790961,1639.8,1639.7,9.15]
[1693771090088,14.41790961,1639.8,1639.7,10.67524665]
[1693771090685,14.41790961,1639.8,1639.7,9.15]
[1693771091078,14.41790961,1639.8,1639.7,10.67524665]
[1693771091991,14.41790961,1639.8,1639.7,9.15]
[1693771092984,14.41449352,1639.8,1639.7,10.67524665]
[1693771093488,11.36468352,1639.8,1639.7,10.67524665]
[1693771093887,11.36809703,1639.8,1639.7,10.67524665]
[1693771094687,8.50093351,1639.8,1639.7,13.72524665]
[1693771094991,2.40131351,1639.8,1639.7,13.72524665]
[1693771096691,2.40131351,1639.8,1639.7,19.22224665]
[1693771097493,2.40131351,1639.8,1639.7,19.70329807]
[1693771098993,5.26847703,1639.8,1639.7,12.68105142]
[1693771099190,11.36809703,1639.8,1639.7,12.68105142]
[1693771099688,11.36809703,1639.8,1639.7,12.2]
[1693771099893,11.36809703,1639.8,1639.7,13.72524665]
[1693771100087,11.36809703,1639.8,1639.7,19.22224665]
[1693771101495,11.36809703,1639.8,1639.7,17.697]
[1693771102397,11.36809703,1639.8,1639.7,19.22224665]
[1693771103096,8.50093351,1639.8,1639.7,19.22224665]
[1693771103295,2.40131351,1639.8,1639.7,19.22224665]
[1693771108098,5.26847703,1639.8,1639.7,19.22224665]
[1693771109503,2.40131351,1639.8,1639.7,19.22224665]
[1693771113106,2.40131351,1639.8,1639.7,13.72524665]
[1693771113405,2.40131351,1639.8,1639.7,19.22224665]
[1693771114608,5.26847703,1639.8,1639.7,19.22224665]
[1693771114905,2.40131351,1639.8,1639.7,19.22224665]
[1693771116802,5.26847703,1639.8,1639.7,19.22224665]
[1693771117002,5.26847703,1639.8,1639.7,19.7164655]
[1693771117909,5.26506352,1639.8,1639.7,18.19121885]
[1693771118098,8.31485352,1639.8,1639.7,18.19121885]
[1693771119005,22.96131352,1639.8,1639.5,4.64414234]
[1693771119201,22.96131352,1639.8,1639.4,10.08555086]
[1693771119202,12.20076,1639.6,1639.4,10.08555086]
[1693771119406,12.20076,1639.6,1639.4,7.69477234]
[1693771119602,14.06484,1639.5,1639.4,7.69477234]
[1693771119803,16.21957449,1639.5,1639.4,7.69477234]
[1693771121304,16.21957449,1639.5,1639.4,10.74533234]
[1693771121501,16.21957449,1639.5,1639.4,13.61249586]
[1693771124108,16.21957449,1639.5,1639.4,12.01864352]
[1693771126401,16.21957449,1639.5,1639.4,9.15148]
[1693771127912,16.21957449,1639.5,1639.4,12.01864352]
[1693771128803,16.21957449,1639.5,1639.4,9.15148]
[1693771130115,16.21957449,1639.5,1639.4,12.01864352]
[1693771130815,16.21957449,1639.5,1639.4,9.15148]
[1693771131115,16.21957449,1639.5,1639.4,12.01864352]
[1693771131917,16.21957449,1639.5,1639.4,9.15148]
[1693771132217,16.21957449,1639.5,1639.4,12.01864352]
[1693771136218,16.21957449,1639.5,1639.4,9.15148]
[1693771136521,16.21957449,1639.5,1639.4,12.01864352]
[1693771136919,16.21957449,1639.5,1639.4,9.15148]
[1693771137720,16.21957449,1639.5,1639.4,12.01864352]
[1693771137921,16.21957449,1639.5,1639.4,9.15148]
[1693771138821,16.21957449,1639.5,1639.4,12.01864352]
[1693771139524,16.21957449,1639.5,1639.4,9.15148]
[1693771140225,16.21957449,1639.5,1639.4,12.01864352]
[1693771140523,16.21957449,1639.5,1639.4,9.15148]
[1693771140820,16.21957449,1639.5,1639.4,12.01864352]
[1693771142920,16.21957449,1639.5,1639.4,9.15148]
[1693771143425,16.21957449,1639.5,1639.4,12.01864352]
[1693771152335,4.9137,1639.5,1639.4,20.56620352]
[1693771152534,2.5028,1639.5,1639.4,20.56620352]
[1693771156136,2.5028,1639.5,1639.4,22.16320342]
[1693771157337,2.5028,1639.5,1639.4,20.56620352]
[1693771159340,2.5028,1639.5,1639.4,22.16320342]
[1693771159939,2.5028,1639.5,1639.4,20.56620352]
[1693771163545,2.5028,1639.5,1639.4,22.16320342]
[1693771164947,4.9745,1639.5,1639.4,22.16320342]
[1693771168250,4.9745,1639.5,1639.4,20.56620352]
[1693771169650,4.9745,1639.5,1639.4,17.69904]
[1693771169949,14.12561,1639.5,1639.4,8.54745]
[1693771170247,14.12561,1639.5,1639.4,14.64855]
[1693771173150,14.12561,1639.5,1639.4,9.15155]
[1693771176062,14.12561,1639.5,1639.4,6.101]
[1693771176757,14.12561,1639.5,1639.4,9.15155]
[1693771179256,14.12561,1639.5,1639.4,6.101]
[1693771186355,14.12561,1639.5,1639.4,9.15155]
[1693771187661,14.12561,1639.5,1639.4,12.01871352]
[1693771189962,14.12561,1639.5,1639.4,9.15155]
[1693771192052,14.12561,1639.5,1639.4,12.01871352]
[1693771199867,14.12561,1639.5,1639.4,9.15155]
[1693771200168,14.12561,1639.5,1639.4,12.01871352]
[1693771200560,4.9745,1639.5,1639.4,15.06926352]
[1693771200769,4.9745,1639.5,1639.4,20.56626352]
[1693771201364,6.0998,1639.8,1639.4,20.56626352]
[1693771201568,2.4635,1639.6,1639.5,7.76693648]
[1693771201868,2.4635,1639.6,1639.5,25.88587]
[1693771202057,1.98773068,1639.6,1639.5,25.88587]
[1693771202264,1.87983068,1639.6,1639.5,25.88587]
[1693771202968,1.39848364,1639.6,1639.5,25.88587]
[1693771204264,1.39848364,1639.6,1639.5,27.48420499]
[1693771204663,1.39848364,1639.6,1639.5,22.8355]
[1693771205274,3.90018364,1639.6,1639.5,22.8355]
[1693771205869,1.39848364,1639.6,1639.5,22.8355]
[1693771208570,1.39848364,1639.6,1639.5,27.48463864]
[1693771208763,1.39848364,1639.6,1639.5,27.48462247]
[1693771209370,1.39848364,1639.6,1639.5,29.88212496]
[1693771209564,0.47655701,1639.6,1639.5,29.88212496]
[1693771209773,6.09865,1640.1,1639.6,5.497]
[1693771209975,11.68232,1640.1,1639.9,5.497]
[1693771210170,6.09865,1640.1,1640.0,12.01548352]
[1693771210478,3.04869,1640.4,1640.0,24.42771888]
[1693771210669,3.0486,1640.5,1640.0,24.42771888]
[1693771210670,6.09721,1640.5,1640.3,5.497]
[1693771210871,9.14584,1640.5,1640.4,16.91300648]
[1693771211071,9.14584,1640.5,1640.4,9.20707]
[1693771211272,9.14584,1640.5,1640.4,3.04869]
[1693771211576,9.14584,1640.5,1640.4,6.09738]
[1693771212370,14.64284,1640.5,1640.4,6.09738]
[1693771212571,14.64284,1640.5,1640.2,6.09802]
[1693771212572,17.69147,1640.5,1640.2,6.09802]
[1693771212775,2.15473449,1640.4,1640.2,9.20809]
[1693771212975,9.14664,1640.3,1640.2,6.09802]
[1693771213166,14.64364,1640.3,1640.2,6.09802]
[1693771213568,22.84492,1640.3,1640.2,3.04901]
[1693771215574,22.84492,1640.3,1640.2,6.09808]
[1693771215776,22.84492,1640.3,1640.2,8.96524352]
[1693771216381,11.25016,1640.3,1640.2,20.62138352]
[1693771216786,14.29904,1640.3,1640.2,14.70515]
[1693771217081,14.29904,1640.3,1640.2,6.15908]
[1693771217377,14.29904,1640.3,1640.2,12.07531352]
[1693771218984,14.29904,1640.3,1640.2,9.20815]
[1693771219182,14.29904,1640.3,1640.2,6.15908]
[1693771220381,14.29904,1640.3,1640.2,9.20815]
[1693771220582,14.29904,1640.3,1640.2,12.07531352]
[1693771220887,11.25016,1640.3,1640.2,20.62138352]
[1693771221778,11.25016,1640.3,1640.2,17.57231352]
[1693771221980,14.29904,1640.3,1640.2,17.57231352]
[1693771222584,11.25016,1640.3,1640.2,20.62138352]
[1693771222780,11.25016,1640.3,1640.2,20.56038352]
[1693771222980,11.25016,1640.3,1640.2,20.62138352]
[1693771223176,11.25016,1640.3,1640.2,20.56038352]
[1693771223384,11.25016,1640.3,1640.2,20.62138352]
[1693771224487,14.29904,1640.3,1640.2,9.20815]
[1693771224894,14.29904,1640.3,1640.2,6.09808]
[1693771225186,14.29904,1640.3,1640.2,8.96524352]
[1693771225390,14.29904,1640.3,1640.2,6.15908]
[1693771225981,17.34792,1640.3,1640.2,3.04901]
[1693771226489,17.34792,1640.3,1640.2,6.09808]
[1693771228187,22.84492,1640.3,1639.9,5.14060303]
[1693771228393,5.497,1640.0,1639.9,6.59435415]
[1693771228589,14.64526,1640.0,1639.9,6.59435415]
[1693771228988,19.42529449,1640.0,1639.9,6.09914]
[1693771229494,22.47471449,1640.0,1639.9,6.09914]
[1693771232296,16.97771449,1640.0,1639.9,6.09914]
[1693771233993,16.97771449,1640.0,1639.9,3.04953]
[1693771236202,16.97771449,1640.0,1639.9,6.09914]
[1693771239004,16.97771449,1640.0,1639.9,7.69499888]
[1693771239199,16.97771449,1640.0,1639.9,4.64538888]
[1693771239600,16.97771449,1640.0,1639.9,7.69499888]
[1693771241302,16.97771449,1640.0,1639.9,4.64538888]
[1693771241507,16.97771449,1640.0,1639.9,7.69501888]
[1693771242005,16.97771449,1640.0,1639.9,4.64538888]
[1693771242512,16.97771449,1640.0,1639.9,7.69501888]
[1693771243504,22.47471449,1640.0,1639.9,1.59585888]
[1693771243705,22.47471449,1640.0,1639.7,1.59585888]
[1693771243910,5.497,1639.8,1639.7,10.74579888]
[1693771244111,14.6464,1639.8,1639.7,7.69581888]
[1693771244403,16.80113449,1639.8,1639.7,10.5629824]
[1693771244599,16.80113449,1639.8,1639.7,7.69581888]
[1693771246108,19.85093449,1639.8,1639.7,6.09996]
[1693771247507,19.85093449,1639.8,1639.7,3.04998]
[1693771248911,19.85093449,1639.8,1639.7,6.09998]
[1693771249101,22.49483449,1639.8,1639.7,6.09998]
[1693771250010,22.49483449,1639.8,1639.7,8.96714352]
[1693771250314,22.49483449,1639.8,1639.7,6.09998]
[1693771251105,22.49483449,1639.8,1639.7,5.91714352]
[1693771251311,22.49483449,1639.8,1639.7,3.04998]
[1693771253109,16.99783449,1639.8,1639.7,3.04998]
[1693771254213,16.99783449,1639.8,1639.7,3.05001]
[1693771255615,16.99783449,1639.8,1639.7,5.91717352]
[1693771255817,16.99783449,1639.8,1639.7,3.05001]
[1693771256311,16.99783449,1639.8,1639.6,11.59707]
[1693771256517,2.5588,1639.7,1639.6,11.59707]
[1693771256707,11.70883,1639.7,1639.6,11.59707]
[1693771256915,11.70883,1639.7,1639.6,14.46423352]
[1693771257822,11.70883,1639.7,1639.6,11.59707]
[1693771258111,11.70883,1639.7,1639.6,6.10007]
[1693771259722,11.70883,1639.7,1639.6,8.96723352]
[1693771260116,11.70883,1639.7,1639.6,3.05003]
[1693771261025,11.70883,1639.7,1639.6,17.51457352]
[1693771261222,5.497,1639.9,1639.6,22.4966655]
[1693771261223,6.09945,1639.9,1639.6,22.4966655]
[1693771261522,6.09945,1639.9,1639.8,9.14946]
[1693771261523,11.11295,1639.9,1639.8,9.14946]
[1693771261725,14.16273,1639.9,1639.8,11.41939648]
[1693771262112,14.16273,1639.9,1639.7,8.54688]
[1693771262317,17.21251,1639.9,1639.7,8.54688]
[1693771262518,19.36724449,1639.9,1639.7,5.497]
[1693771263120,24.86424449,1639.9,1639.6,11.59714]
[1693771264614,24.86424449,1639.9,1639.6,8.54707]
[1693771264823,5.497,1639.7,1639.5,6.10055]
[1693771265020,11.30530449,1639.6,1639.5,6.10055]
[1693771265220,16.27810449,1639.6,1639.5,6.10055]
[1693771265924,16.27810449,1639.6,1639.5,8.96771352]
[1693771266328,14.12337,1639.6,1639.5,12.01808352]
[1693771267225,14.12337,1639.6,1639.5,13.61104986]
[1693771268226,14.12337,1639.6,1639.5,10.56067986]
[1693771268426,14.12337,1639.6,1639.5,8.96771352]
[1693771269127,14.12337,1639.6,1639.5,12.01808352]
[1693771269425,14.12337,1639.6,1639.5,8.96771352]
[1693771269821,14.12337,1639.6,1639.5,9.15092]
[1693771270023,14.12337,1639.6,1639.5,12.01808352]
[1693771270222,14.12337,1639.6,1639.5,10.56067986]
[1693771270426,14.12337,1639.6,1639.5,13.61104986]
[1693771270725,14.12337,1639.6,1639.5,7.69351634]
[1693771273825,14.12337,1639.6,1639.5,10.56067986]
[1693771274027,14.12337,1639.6,1639.5,7.69351634]
[1693771275132,17.17356,1639.6,1639.5,7.6958507]
[1693771276426,17.17356,1639.6,1639.5,6.10055]
[1693771277130,17.17356,1639.6,1639.5,4.6455407]
[1693771277530,17.17356,1639.6,1639.5,7.6959107]
[1693771277827,14.12337,1639.6,1639.5,10.56307422]
[1693771278131,14.12337,1639.6,1639.5,8.96777352]
[1693771283935,14.12337,1639.6,1639.5,12.01814352]
[1693771285140,11.07318,1639.6,1639.5,12.01814352]
[1693771286136,14.12337,1639.6,1639.5,12.01814352]
[1693771287841,14.12337,1639.6,1639.5,20.56551352]
[1693771287842,2.5468,1639.6,1639.5,20.56551352]
[1693771288243,2.5468,1639.6,1639.5,22.16081422]
[1693771289038,5.59698,1639.6,1639.5,22.16081422]
[1693771289843,2.5468,1639.6,1639.5,22.16081422]
[1693771290531,5.59698,1639.6,1639.5,22.16081422]
[1693771303252,8.64716,1639.6,1639.5,22.16081422]
[1693771305854,5.59698,1639.6,1639.5,22.16081422]
[1693771306253,2.5468,1639.6,1639.5,22.16081422]
[1693771306951,2.5468,1639.6,1639.5,20.56551352]
[1693771307153,5.59696,1639.6,1639.5,22.16255796]
[1693771308855,5.59696,1639.6,1639.5,19.29539444]
[1693771309358,8.64712,1639.6,1639.5,19.29539444]
[1693771309565,8.64712,1639.6,1639.5,22.16255796]
[1693771312566,8.64712,1639.6,1639.5,20.56551352]
[1693771322272,8.64712,1639.6,1639.5,17.69835]
[1693771323972,8.64712,1639.6,1639.5,20.56551352]
[1693771328677,8.64712,1639.6,1639.5,22.16255796]
[1693771329975,5.59696,1639.6,1639.5,22.16255796]
[1693771330980,5.59698,1639.6,1639.5,22.16255796]
[1693771331175,2.5468,1639.6,1639.5,22.16255796]
[1693771331376,2.4546,1639.7,1639.5,26.81038394]
[1693771331576,4.9324,1639.7,1639.6,20.30774178]
[1693771331882,4.9324,1639.7,1639.6,30.91125228]
[1693771334683,4.9324,1639.7,1639.6,32.50749193]
[1693771335778,4.9324,1639.7,1639.6,27.06089613]
[1693771338081,6.09867,1640.1,1639.6,27.06089613]
[1693771338276,5.497,1640.3,1639.7,4.64560782]
[1693771338277,0.72596471,1640.0,1639.7,4.64560782]
[1693771338475,3.04895,1640.3,1639.9,17.09225639]
[1693771338677,9.14642,1640.4,1640.2,5.497]
[1693771338877,6.09607,1640.8,1640.4,0.061]
[1693771339077,9.14412,1640.8,1640.6,5.497]
[1693771339383,9.14412,1640.8,1640.7,9.14436]
[1693771339572,11.29885449,1640.8,1640.7,12.01152352]
[1693771340276,11.29885449,1640.8,1640.7,9.14436]
[1693771340872,11.29885449,1640.8,1640.7,12.01152352]
[1693771341080,7.65173449,1640.8,1640.7,3.04812]
[1693771341278,8.60607,1641.0,1640.7,20.55664352]
[1693771341575,2.4431,1640.8,1640.7,15.05964352]
[1693771341774,2.4431,1640.8,1640.7,22.82658]
[1693771345685,1.52839485,1640.8,1640.7,22.82658]
[1693771345882,4.57632485,1640.8,1640.7,14.64136]
[1693771346179,10.67218485,1640.8,1640.7,17.50852352]
[1693771346379,10.67218485,1640.8,1640.7,14.64136]
[1693771347183,10.67218485,1640.8,1640.7,17.50852352]
[1693771347785,10.67218485,1640.8,1640.7,14.64136]
[1693771349585,10.67218485,1640.8,1640.7,17.50852352]
[1693771350187,10.67218485,1640.8,1640.7,14.64136]
[1693771350683,10.67218485,1640.8,1640.7,17.50852352]
[1693771350983,9.14757151,1640.8,1640.7,17.50852352]
[1693771353288,9.14757151,1640.8,1640.7,14.64136]
[1693771353982,9.14757151,1640.8,1640.7,17.50852352]
[1693771354380,9.14757151,1640.8,1640.7,14.64136]
[1693771355079,17.69250151,1640.8,1640.6,1.59525639]
[1693771355288,7.65173449,1640.7,1640.4,15.58228097]
[1693771355483,17.69024,1640.6,1640.4,7.69239639]
[1693771355681,2.15473449,1640.5,1640.4,6.09714]
[1693771355880,11.30020449,1640.5,1640.4,6.09714]
[1693771356187,11.30020449,1640.5,1640.4,7.69239639]
[1693771356787,11.30020449,1640.5,1640.4,6.09714]
[1693771359684,11.30020449,1640.5,1640.4,11.59414]
[1693771360387,11.30020449,1640.5,1640.4,14.46130352]
[1693771360585,11.30020449,1640.5,1640.2,1.59525639]
[1693771360586,14.34869449,1640.5,1640.2,1.59525639]
[1693771360789,12.19544,1640.3,1640.2,3.98814097]
[1693771360983,12.19544,1640.3,1640.1,4.64434639]
[1693771361288,12.19544,1640.3,1640.1,1.59525639]
[1693771361683,12.19544,1640.3,1640.1,7.03826629]
[1693771361885,12.19544,1640.3,1640.1,3.98814097]
[1693771362685,12.19544,1640.3,1640.1,1.59525639]
[1693771366596,12.19544,1640.3,1640.1,3.98814097]
[1693771366786,12.19544,1640.3,1640.1,7.03838338]
[1693771366987,12.19544,1640.3,1640.1,1.59525639]
[1693771367387,12.19544,1640.3,1640.1,7.03835571]
[1693771367592,12.19544,1640.3,1640.1,3.98814097]
[1693771368487,9.14658,1640.3,1640.2,2.86716352]
[1693771368690,6.09772,1640.3,1640.2,19.90515519]
[1693771368893,3.04873,1640.4,1640.2,22.95420519]
[1693771369192,6.09772,1640.3,1640.2,19.9041981]
[1693771369393,6.09772,1640.3,1640.2,25.22402142]
[1693771370095,9.14658,1640.3,1640.2,19.18692142]
[1693771370295,9.14658,1640.3,1640.2,22.23597142]
[1693771370788,9.14658,1640.3,1640.2,16.07687142]
[1693771370995,12.19544,1640.3,1640.2,12.52633366]
[1693771371196,12.19544,1640.3,1640.2,10.13344908]
[1693771371894,12.19544,1640.3,1640.2,7.08356224]
[1693771372693,12.19544,1640.3,1640.2,10.13369641]
[1693771373998,12.19544,1640.3,1640.2,7.08356224]
[1693771376593,12.19544,1640.3,1640.2,10.13369598]
[1693771376792,12.19544,1640.3,1640.2,7.08356224]
[1693771377193,12.19544,1640.3,1640.2,10.13365864]
[1693771377393,12.19544,1640.3,1640.2,18.44275674]
[1693771377594,6.09772,1640.3,1640.2,22.9542945]
[1693771381001,9.14658,1640.3,1640.2,22.9542945]
[1693771381597,9.14658,1640.3,1640.2,20.08713098]
[1693771381896,9.14658,1640.3,1640.2,19.9052445]
[1693771382500,9.14658,1640.3,1640.2,17.03808098]
[1693771383198,9.14658,1640.3,1640.2,19.9052445]
[1693771383405,6.09772,1640.3,1640.2,22.9543145]
[1693771385706,6.09772,1640.3,1640.2,24.54439563]
[1693771386307,9.14661,1640.3,1640.2,21.49532563]
[1693771386608,9.14661,1640.3,1640.2,7.08708113]
[1693771386800,12.1955,1640.3,1640.2,5.497]
[1693771387106,14.8165,1640.3,1640.2,5.497]
[1693771395717,14.8165,1640.3,1640.1,14.21487]
[1693771396209,14.8165,1640.3,1640.1,17.08203352]
[1693771396611,14.8165,1640.3,1640.1,14.21487]
[1693771397211,14.8165,1640.3,1640.1,17.08203352]
[1693771400505,2.621,1640.3,1640.2,7.76693648]
[1693771400711,6.09761,1640.4,1640.3,9.14667]
[1693771400915,6.09761,1640.4,1640.3,12.01383352]
[1693771401208,6.09761,1640.4,1640.3,14.46193352]
[1693771403211,6.09761,1640.4,1640.3,19.95893352]
[1693771404406,5.51673,1640.5,1640.4,0.061]
[1693771404407,11.61399,1640.5,1640.4,0.061]
[1693771404720,3.04838,1640.6,1640.4,20.02265648]
[1693771404905,6.09673,1640.6,1640.5,8.36416352]
[1693771405307,6.09673,1640.6,1640.5,20.03643352]
[1693771405814,6.09662,1640.6,1640.5,20.03643352]
[1693771412030,9.14493,1640.6,1640.5,14.12078]
[1693771412630,9.14493,1640.6,1640.5,16.98794352]
[1693771413935,9.14493,1640.6,1640.5,20.03643352]
[1693771414134,9.14493,1640.6,1640.5,14.12078]
[1693771414728,9.14493,1640.6,1640.5,16.98794352]
[1693771414934,9.14493,1640.6,1640.5,14.12078]
[1693771415233,9.14493,1640.6,1640.5,2.5268]
[1693771415435,12.19324,1640.6,1640.5,2.5268]
[1693771416028,12.19324,1640.6,1640.4,3.10962]
[1693771416327,11.69917,1640.5,1640.4,8.7859]
[1693771416533,14.74766,1640.5,1640.4,2.6886]
[1693771416728,20.24466,1640.5,1640.4,2.6276]
[1693771416934,20.24466,1640.5,1640.2,14.64395]
[1693771417235,20.24466,1640.5,1640.2,11.11236]
[1693771417435,20.24466,1640.5,1640.2,14.16141]
[1693771417729,20.24466,1640.5,1640.2,17.21046]
[1693771417926,20.24466,1640.5,1640.2,11.11236]
[1693771418431,20.24466,1640.5,1640.2,17.21046]
[1693771422031,20.24466,1640.5,1640.3,5.91595352]
[1693771422226,20.24466,1640.5,1640.3,8.96481352]
[1693771422729,20.24466,1640.5,1640.3,6.09765]
[1693771425436,20.24466,1640.5,1640.3,3.04879]
[1693771425935,20.24466,1640.5,1640.3,6.09765]
[1693771429641,20.24466,1640.5,1640.3,8.96481352]
[1693771430238,17.19617,1640.5,1640.3,12.01367352]
[1693771430440,11.69917,1640.5,1640.3,17.51067352]
[1693771430841,11.69917,1640.5,1640.3,19.78061]
[1693771441449,20.24466,1640.5,1640.3,6.09765]
[1693771441850,20.24466,1640.5,1640.3,3.04879]
[1693771442349,20.24466,1640.5,1640.3,6.09765]
[1693771442544,20.24466,1640.5,1640.3,3.04879]
[1693771443147,5.497,1640.4,1640.3,3.04879]
[1693771443453,14.64304,1640.4,1640.3,3.04879]
[1693771444053,17.69172,1640.4,1640.2,8.66432]
[1693771444248,2.5744,1640.3,1640.2,8.66432]
[1693771444447,11.72098,1640.3,1640.2,11.71328]
[1693771445846,11.72098,1640.3,1640.2,8.6643]
[1693771446049,20.26684,1640.3,1640.1,3.04916]
[1693771446346,20.26684,1640.3,1640.2,3.04905]
[1693771446551,20.26684,1640.3,1640.1,11.67443]
[1693771446741,20.26684,1640.3,1640.1,8.62527]
[1693771449953,20.26684,1640.3,1639.9,6.09909]
[1693771449954,5.497,1640.2,1639.9,6.09909]
[1693771450148,5.497,1640.0,1639.8,8.58624]
[1693771450344,9.14889,1639.9,1639.8,11.45340352]
[1693771450647,11.61529,1639.9,1639.8,8.58624]
[1693771451154,11.61529,1639.9,1639.8,5.53662]
[1693771451351,11.61529,1639.9,1639.8,2.4868]
[1693771451544,11.61529,1639.9,1639.8,5.53662]
[1693771451751,11.61529,1639.9,1639.8,2.4868]
[1693771452350,20.16192,1639.9,1639.8,2.4868]
[1693771452849,20.16192,1639.9,1639.8,5.53662]
[1693771453655,20.16192,1639.9,1639.8,2.4868]
[1693771455555,20.16192,1639.9,1639.6,3.05011]
[1693771455857,5.497,1639.8,1639.6,5.43681]
[1693771456058,9.15,1639.7,1639.6,5.43681]
[1693771456261,11.7023,1639.7,1639.6,5.43681]
[1693771456861,11.7023,1639.7,1639.6,2.3867]
[1693771457264,11.7023,1639.7,1639.6,5.43689]
[1693771457451,11.7023,1639.7,1639.6,2.3867]
[1693771458550,11.7023,1639.7,1639.6,5.43689]
[1693771460761,11.7023,1639.7,1639.6,8.48708]
[1693771463155,11.7023,1639.7,1639.6,5.43689]
[1693771463557,11.7023,1639.7,1639.6,2.3867]
[1693771463759,11.7023,1639.7,1639.6,5.43689]
[1693771463954,11.7023,1639.7,1639.6,2.3867]
[1693771464156,14.7523,1639.7,1639.6,2.3867]
[1693771464354,14.7523,1639.7,1639.6,5.43689]
[1693771464662,20.2493,1639.7,1639.6,5.43689]
[1693771465263,20.2493,1639.7,1639.6,2.3867]
[1693771465565,20.2493,1639.7,1639.6,5.43689]
[1693771469770,19.33400781,1639.7,1639.6,5.43689]
[1693771470065,19.33400781,1639.7,1639.6,8.30405352]
[1693771471165,19.33400781,1639.7,1639.6,5.43689]
[1693771474174,19.33400781,1639.7,1639.6,2.3867]
[1693771475276,19.33400781,1639.7,1639.6,5.43686]
[1693771476574,19.33400781,1639.7,1639.6,2.3867]
[1693771484488,19.33400781,1639.7,1639.5,1.59008113]
[1693771484686,5.497,1639.6,1639.5,9.48782926]
[1693771484991,5.497,1639.6,1639.5,4.04388113]
[1693771484992,17.69776,1639.6,1639.5,4.04388113]
[1693771485689,17.69776,1639.6,1639.5,7.09500996]
[1693771486091,17.69776,1639.6,1639.5,9.48789454]
[1693771487894,17.69776,1639.6,1639.5,7.09500996]
[1693771488991,17.69776,1639.6,1639.5,4.04388113]
[1693771489392,17.69776,1639.6,1639.5,2.4538]
[1693771489987,17.69776,1639.6,1639.5,4.04388113]
[1693771490187,17.69776,1639.6,1639.5,1.59008113]
[1693771490393,17.69776,1639.6,1639.4,3.96898113]
[1693771490596,20.76016832,1639.5,1639.4,3.96898113]
[1693771492000,20.76016832,1639.5,1639.4,1.59008113]
[1693771494698,20.76016832,1639.5,1639.4,4.64156271]
[1693771494999,20.76016832,1639.5,1639.4,1.59008113]
[1693771495797,20.76016832,1639.5,1639.4,4.64156384]
[1693771495997,20.76016832,1639.5,1639.4,1.59008113]
[1693771497189,20.76016832,1639.5,1639.2,1.59008113]
[1693771497392,5.497,1639.3,1639.2,13.23701966]
[1693771497603,14.64925,1639.3,1639.2,13.23701966]
[1693771497988,14.64925,1639.3,1639.2,10.18518113]
[1693771498193,14.64925,1639.3,1639.2,13.05234465]
[1693771498899,14.64925,1639.3,1639.2,11.46226352]
[1693771499198,17.7,1639.3,1639.2,8.41133352]
[1693771499698,17.7,1639.3,1639.2,5.54417]
[1693771500394,17.7,1639.3,1639.2,8.41133352]
[1693771500797,17.7,1639.3,1639.2,5.54417]
[1693771501100,17.7,1639.3,1639.2,2.4933]
[1693771502095,14.64925,1639.3,1639.2,5.36046352]
[1693771502401,14.64925,1639.3,1639.2,5.54422]
[1693771502604,14.64925,1639.3,1639.2,11.46230352]
[1693771502994,14.64925,1639.3,1639.2,8.59514]
[1693771503404,14.64925,1639.3,1639.2,11.46230352]
[1693771504400,14.64925,1639.3,1639.2,8.59514]
[1693771504601,14.64925,1639.3,1639.2,5.54422]
[1693771508203,17.13345,1639.3,1639.2,5.54422]
[1693771509105,20.1842,1639.3,1639.2,5.54422]
[1693771509507,20.1842,1639.3,1639.2,2.4933]